bitfinex-derivatives/quotes_BNBF0:USTF0_20250424
["timestamp","ask_amount","ask_price","bid_price","bid_amount"]
[1745480009835,0.28744177,606.13,605.12,1.0696277]
[1745480010335,0.28744177,606.13,605.13,1.0696277]
[1745480010936,0.28744177,606.13,605.11,1.365]
[1745480011632,0.28744177,606.13,605.12,1.06961422]
[1745480011936,0.28744177,606.13,605.11,1.365]
[1745480012837,1.2568832,606.15,605.11,1.365]
[1745480014034,0.2874572,606.14,605.11,1.365]
[1745480015839,1.2568832,606.18,605.11,1.365]
[1745480016240,0.28744177,606.13,605.11,1.365]
[1745480018839,1.2568832,606.2,605.11,1.365]
[1745480019143,0.28743939,606.12,605.11,1.365]
[1745480019338,1.2568832,606.2,605.11,1.365]
[1745480020146,0.28743465,606.19,605.11,1.365]
[1745480022146,1.2568832,606.12,605.11,1.365]
[1745480022547,1.2568832,606.12,605.12,1.06993483]
[1745480023047,1.2568832,606.12,605.11,1.365]
[1745480025151,1.2568832,605.99,605.11,1.365]
[1745480026350,1.2568832,605.99,605.12,1.553]
[1745480027347,0.2874762,606.05,605.12,1.553]
[1745480028150,1.2568832,606.12,605.12,1.553]
[1745480028650,1.2568832,606.12,605.13,1.07005332]
[1745480029351,1.2568832,606.12,605.14,1.07005332]
[1745480029648,0.28743939,606.13,605.14,1.07005332]
[1745480030355,0.28743939,606.13,605.15,1.07005332]
[1745480030553,0.28743939,606.13,605.16,1.07005332]
[1745480031053,0.28743939,606.13,605.17,1.07005332]
[1745480031454,0.28743939,606.13,605.16,1.769]
[1745480032048,0.28743939,606.13,605.16,3.142]
[1745480032756,0.28743939,606.13,605.17,1.07011022]
[1745480033256,1.2568832,606.33,605.18,1.07011022]
[1745480033455,0.28739311,606.2,605.18,1.07011022]
[1745480033655,0.28739311,606.2,605.19,1.07011022]
[1745480033957,1.2568832,606.33,605.19,1.07011022]
[1745480034256,1.2568832,606.33,605.2,1.07011022]
[1745480034751,1.2568832,606.33,605.21,1.07011022]
[1745480035160,0.28738836,606.32,605.22,1.07011022]
[1745480035655,0.28738836,606.32,605.23,1.07011022]
[1745480035860,0.28738836,606.32,605.16,3.142]
[1745480036461,0.28738836,606.32,605.17,1.06991557]
[1745480036760,0.28738836,606.32,605.18,1.06991557]
[1745480036958,1.2568832,606.88,605.18,1.06991557]
[1745480037259,1.2568832,606.88,605.19,1.06991557]
[1745480037960,1.2568832,606.88,605.2,1.06991557]
[1745480038160,0.28733734,606.87,605.2,1.06991557]
[1745480038361,0.28733734,606.87,605.21,1.06991557]
[1745480039162,0.28733734,606.87,605.16,3.142]
[1745480039761,0.28733734,606.87,605.17,1.07015032]
[1745480039966,1.2568832,606.88,605.17,1.07015032]
[1745480040163,1.2568832,606.88,605.18,1.07015032]
[1745480040462,0.28733971,606.86,605.18,1.07015032]
[1745480040660,1.2568832,606.82,605.19,1.07015032]
[1745480040964,1.2568832,606.82,605.2,1.07015032]
[1745480041365,1.2568832,606.82,605.21,1.07015032]
[1745480041967,1.2568832,606.82,605.16,3.142]
[1745480042366,1.2568832,606.82,605.17,1.07026583]
[1745480042767,1.2568832,606.82,605.18,1.07026583]
[1745480043368,1.2568832,606.82,605.19,1.07026583]
[1745480043569,1.2568832,606.82,605.16,3.142]
[1745480044169,1.2568832,606.82,605.17,1.07038077]
[1745480045065,1.2568832,606.82,605.18,1.07038077]
[1745480045468,1.2568832,606.82,604.67,0.28733971]
[1745480045768,1.2568832,606.82,604.68,1.45529429]
[1745480045965,1.2568832,606.82,604.69,1.45529429]
[1745480046269,0.28740497,606.81,604.7,2.52565686]
[1745480046470,0.28740497,606.81,604.71,1.45529383]
[1745480046669,0.28740497,606.81,604.72,1.45529383]
[1745480046865,0.28740497,606.81,604.73,1.45529383]
[1745480047165,0.28740497,606.81,604.74,1.45529383]
[1745480047365,0.28740497,606.81,604.75,2.52565686]
[1745480047566,0.28740497,606.81,604.76,1.45529383]
[1745480047764,0.28740497,606.81,604.77,2.52565686]
[1745480047969,0.28740497,606.81,604.78,1.45530927]
[1745480048168,0.28740497,606.81,604.79,1.45530927]
[1745480048365,0.28740497,606.81,604.8,2.5256723]
[1745480048669,0.28740497,606.81,604.81,2.5256723]
[1745480048970,1.2568832,606.82,604.82,2.5256723]
[1745480049169,1.2568832,606.82,604.83,1.45530927]
[1745480049369,1.2568832,606.82,604.84,1.45530927]
[1745480049566,1.2568832,606.82,604.85,1.45530927]
[1745480049766,1.2568832,606.82,604.86,2.5256723]
[1745480049967,1.2568832,606.82,604.87,1.45530927]
[1745480050169,0.28740735,606.81,604.88,1.45530927]
[1745480050373,0.28740735,606.81,604.89,1.45530927]
[1745480050574,0.28740735,606.81,604.9,2.5256723]
[1745480050772,0.28740735,606.81,604.91,1.45530927]
[1745480051073,0.28740735,606.81,604.92,2.5256723]
[1745480051273,0.28740735,606.81,604.93,1.45530927]
[1745480051470,0.28740735,606.81,604.94,1.45530927]
[1745480051675,0.28740735,606.81,604.95,1.45530936]
[1745480051971,0.28740735,606.81,604.96,2.52567239]
[1745480052174,0.28740735,606.81,604.97,1.45530936]
[1745480052375,0.28740735,606.81,604.98,1.45530936]
[1745480052580,0.28740735,606.81,604.99,1.45530936]
[1745480052776,0.28740735,606.81,605.0,1.45530936]
[1745480053078,0.28740735,606.81,605.01,2.52567239]
[1745480053275,0.28740735,606.81,605.02,1.45530936]
[1745480053471,0.28740735,606.81,605.03,1.45526141]
[1745480053673,0.28740735,606.81,605.04,2.52562444]
[1745480053674,1.2568832,606.22,605.04,2.52562444]
[1745480053871,1.2568832,606.22,605.05,2.52562444]
[1745480054071,1.2568832,606.22,605.06,1.45526141]
[1745480054277,1.2568832,606.22,605.07,1.45526141]
[1745480054472,1.2568832,606.22,605.08,1.45526141]
[1745480054678,1.2568832,606.22,605.09,0.84796727]
[1745480054878,1.2568832,606.22,605.1,1.9183303]
[1745480055074,1.2568832,606.22,605.11,0.84796727]
[1745480055274,2.13844712,606.53,605.1,1.07036303]
[1745480055275,1.2568832,606.21,605.1,1.07036303]
[1745480055478,1.2568832,606.21,605.11,1.91800664]
[1745480055678,1.2568832,606.21,605.11,1.07036303]
[1745480055878,1.2568832,606.21,605.12,0.8476344]
[1745480056080,1.2568832,606.21,605.13,1.07036303]
[1745480056380,0.28741684,606.2,605.14,1.07036303]
[1745480057181,0.28741684,606.2,605.15,1.07036303]
[1745480057482,1.2568832,606.19,605.15,1.07036303]
[1745480058082,1.2568832,606.19,605.16,1.07036303]
[1745480058683,1.2568832,606.19,605.17,1.07036303]
[1745480059185,1.54429529,606.19,605.17,1.07036303]
[1745480059377,1.54429529,606.19,605.18,1.07036303]
[1745480059779,1.54429529,606.19,605.19,1.07036303]
[1745480059980,1.2568832,606.04,605.19,1.07036303]
[1745480060783,1.2568832,606.04,604.9,1.539]
[1745480060983,1.2568832,606.04,604.91,2.52482086]
[1745480061184,1.2568832,606.04,604.92,1.45480614]
[1745480061383,1.2568832,606.04,604.93,1.45480614]
[1745480061679,1.2568832,606.04,604.94,2.52482086]
[1745480061885,1.2568832,606.04,604.95,1.45480614]
[1745480062084,1.2568832,606.04,604.96,1.45480614]
[1745480062283,1.2568832,606.04,604.97,1.45480614]
[1745480062480,1.2568832,606.03,604.98,2.52482086]
[1745480062687,1.2568832,606.03,604.99,1.45480614]
[1745480062887,1.2568832,606.03,605.0,2.52482086]
[1745480063085,1.2568832,606.03,605.01,1.45480614]
[1745480063386,1.2568832,606.03,605.02,1.45480614]
[1745480063588,1.2568832,606.03,605.03,1.45480614]
[1745480063786,1.2568832,606.03,605.04,2.52482086]
[1745480064082,1.2568832,606.03,605.05,1.45480614]
[1745480064285,1.2568832,606.03,605.06,2.52482086]
[1745480064484,1.2568832,606.03,605.07,1.45480614]
[1745480064682,1.2568832,606.03,605.08,1.91769085]
[1745480064982,1.2568832,606.03,605.09,0.84767613]
[1745480065182,1.2568832,606.03,605.1,1.91769085]
[1745480065381,1.2568832,606.03,605.11,0.84767613]
[1745480065681,1.2568832,606.03,605.12,1.07001472]
[1745480065888,1.2568832,605.99,605.12,1.07001472]
[1745480066382,1.2568832,605.99,605.13,1.07001472]
[1745480066587,1.2568832,605.99,605.14,0.84763069]
[1745480066782,1.2568832,605.99,605.15,0.84763069]
[1745480067081,1.2568832,605.99,605.16,0.84763069]
[1745480067282,1.2568832,605.99,605.17,1.07001472]
[1745480067586,1.2568832,605.99,605.18,1.07001472]
[1745480068188,2.13844712,606.09,605.19,1.07001472]
[1745480068388,0.28744652,606.19,605.19,1.07001472]
[1745480068582,1.2568832,606.43,605.2,1.91741934]
[1745480068781,1.2568832,606.43,605.21,1.45431904]
[1745480068987,0.28734802,606.33,605.22,1.91741934]
[1745480069185,1.2568832,606.43,605.23,0.84740462]
[1745480069382,1.2568832,606.43,605.24,0.84740462]
[1745480069685,0.28734446,606.33,605.25,0.84740462]
[1745480069882,1.2568832,606.43,605.26,0.84740462]
[1745480070082,1.2568832,606.43,605.25,1.07001472]
[1745480070388,0.28733971,606.42,605.26,1.07001472]
[1745480070582,0.28733971,606.42,605.27,1.07001472]
[1745480071084,0.28733971,606.42,605.28,1.07001472]
[1745480071792,0.28733971,606.42,604.87,1.294]
[1745480072092,0.28733971,606.42,604.88,2.52233498]
[1745480072291,0.28733971,606.42,604.89,1.45336048]
[1745480072492,0.28733971,606.42,604.9,1.45336048]
[1745480072792,0.28733971,606.42,604.91,2.52233498]
[1745480072992,1.2568832,606.43,604.92,2.52233498]
[1745480073187,1.2568832,606.43,604.93,1.45336048]
[1745480073395,1.2568832,606.29,604.94,1.45336048]
[1745480073592,1.2568832,606.29,604.95,2.52252592]
[1745480073792,1.2568832,606.29,604.96,1.45355142]
[1745480073992,1.2568832,606.29,604.97,2.52252592]
[1745480074194,0.28742634,606.28,604.98,1.45355142]
[1745480074391,0.28742634,606.28,604.99,1.45355142]
[1745480074594,0.28742634,606.28,605.0,2.52252592]
[1745480074791,0.28742634,606.28,605.01,0.8469416]
[1745480074996,0.28742634,606.28,605.02,1.0689745]
[1745480075298,0.28742634,606.28,605.03,0.84717821]
[1745480075591,0.28742634,606.28,605.04,1.0689745]
[1745480075797,0.28742634,606.28,605.05,1.0689745]
[1745480075996,1.2568832,606.29,605.05,1.0689745]
[1745480076295,1.2568832,606.29,605.06,1.0689745]
[1745480076998,1.2568832,606.23,605.06,1.0689745]
[1745480077597,1.2568832,606.23,605.07,1.0689745]
[1745480077800,1.2568832,606.23,605.08,1.0689745]
[1745480078298,1.2568832,606.23,605.09,1.0689745]
[1745480078698,1.2568832,606.23,605.1,1.0689745]
[1745480079200,1.2568832,606.23,605.11,1.0689745]
[1745480079499,1.2568832,606.23,605.12,1.0689745]
[1745480079898,2.13844712,606.85,605.12,1.0689745]
[1745480079899,1.2568832,606.32,605.12,1.0689745]
[1745480080198,0.28744652,606.22,605.1,1.669]
[1745480080500,1.2568832,606.32,605.1,1.669]
[1745480081296,1.2568832,606.32,605.11,1.06942592]
[1745480081502,0.28743821,606.31,605.11,1.06942592]
[1745480082002,1.2568832,606.32,605.1,1.669]
[1745480082798,1.2568832,606.32,605.11,1.06940988]
[1745480082999,2.13844712,606.98,605.11,1.06940988]
[1745480083000,1.2568832,606.83,605.11,1.06940988]
[1745480083204,0.28743821,606.31,605.11,1.06940988]
[1745480083403,1.2568832,606.83,605.1,1.669]
[1745480084904,0.28739904,606.82,605.1,1.669]
[1745480085406,1.2568832,606.81,605.1,1.669]
[1745480088210,1.2568832,606.68,605.1,1.669]
[1745480089111,0.28739667,606.67,605.1,1.669]
[1745480090614,1.2568832,606.2,605.1,1.669]
[1745480092312,0.2874477,606.19,605.1,1.669]
[1745480094015,1.2568832,606.3,605.1,1.669]
[1745480094219,1.2568832,606.3,605.11,1.1]
[1745480095422,0.28743939,606.29,605.11,1.1]
[1745480095619,1.2568832,606.24,605.11,1.1]
[1745480098227,0.28743939,606.29,605.11,1.1]
[1745480099827,1.2568832,606.3,605.11,1.1]
[1745480100724,1.2568832,606.3,605.12,1.28]
[1745480101228,0.2874477,606.29,605.12,1.28]
[1745480102531,0.2874477,606.29,605.13,1.06871405]
[1745480102829,1.2568832,606.3,605.14,1.06871405]
[1745480103024,1.2568832,606.3,605.12,1.28]
[1745480103629,1.2568832,606.3,605.13,1.06870314]
[1745480104130,2.13844712,606.92,605.12,1.28]
[1745480104131,0.2874204,606.29,605.14,1.06870314]
[1745480105830,1.2568832,606.52,605.14,1.06870314]
[1745480106031,1.2568832,606.52,605.12,1.28]
[1745480106233,0.28739311,606.28,605.12,1.28]
[1745480106433,1.2568832,606.52,605.12,1.28]
[1745480106633,1.2568832,606.52,605.13,2.18870761]
[1745480107131,0.28739429,606.51,605.13,2.18870761]
[1745480107333,1.2568832,606.38,605.13,1.12]
[1745480107735,1.2568832,606.38,605.14,1.06868264]
[1745480108136,1.2568832,606.38,605.13,1.12]
[1745480108835,1.2568832,606.38,605.14,1.06864424]
[1745480109136,0.28741091,606.37,605.14,1.06864424]
[1745480109337,1.2568832,606.19,605.14,1.06864424]
[1745480109635,1.2568832,606.19,605.15,1.06864424]
[1745480110138,1.2568832,606.19,605.16,1.06864424]
[1745480110337,1.2568832,606.19,605.13,1.12]
[1745480111439,0.28741091,606.37,605.13,1.12]
[1745480114844,1.2568832,606.53,605.13,1.12]
[1745480115145,0.28741447,606.36,605.13,1.12]
[1745480115445,1.2568832,606.53,605.13,1.12]
[1745480116147,0.28741684,606.52,605.13,1.12]
[1745480117343,1.2568832,606.03,605.13,1.12]
[1745480117547,1.2568832,606.03,605.12,1.28]
[1745480117746,1.2568832,606.03,605.14,1.354]
[1745480120348,1.2568832,606.03,604.47,0.28749401]
[1745480120548,1.2568832,606.03,604.48,2.82511008]
[1745480120746,1.2568832,606.03,604.49,1.75655754]
[1745480120947,1.2568832,606.06,604.5,1.75655754]
[1745480121147,1.2568832,606.06,604.51,1.45287443]
[1745480121450,1.2568832,606.06,604.52,1.45280439]
[1745480121643,1.2568832,606.06,604.53,1.45280439]
[1745480121842,1.2568832,606.06,604.54,2.52135693]
[1745480122046,1.2568832,606.06,604.55,1.45280439]
[1745480122247,0.28757716,606.05,604.56,1.45280439]
[1745480122442,0.28757716,606.05,604.57,2.52135693]
[1745480122646,0.28757716,606.05,604.58,1.45280439]
[1745480122847,0.28757716,606.05,604.59,1.45280439]
[1745480123047,0.28757716,606.05,604.6,1.45280439]
[1745480123247,0.28757716,606.05,604.61,2.52135693]
[1745480123445,0.28757716,606.05,604.62,2.52135693]
[1745480123748,0.28757716,606.05,604.63,1.45251355]
[1745480124050,1.2568832,606.11,604.64,2.52106609]
[1745480124247,1.2568832,606.11,604.65,1.45251355]
[1745480124448,0.28757479,606.1,604.66,1.45251355]
[1745480124649,0.28757479,606.1,604.67,2.52106609]
[1745480124851,0.28757479,606.1,604.68,1.45251355]
[1745480125045,0.28757479,606.1,604.69,1.91485702]
[1745480125246,0.28757479,606.1,604.7,0.84630448]
[1745480125449,0.28757479,606.1,604.69,1.06855254]
[1745480125849,0.28757479,606.1,604.7,1.06855254]
[1745480126453,0.28757479,606.1,604.71,1.06855254]
[1745480126752,0.28757479,606.1,604.72,1.06855254]
[1745480126953,1.2568832,606.05,604.72,1.06855254]
[1745480127852,1.2568832,606.05,604.73,1.06855254]
[1745480128054,1.2568832,606.05,604.74,1.06855254]
[1745480128652,1.2568832,606.05,604.32,0.28756885]
[1745480128860,1.2568832,606.05,604.33,2.82156524]
[1745480129153,1.2568832,606.05,604.34,1.75456439]
[1745480129358,1.2568832,606.05,604.35,1.75456439]
[1745480129558,0.28756885,606.09,604.36,1.75456439]
[1745480129757,0.28756885,606.09,604.37,1.75456439]
[1745480129954,1.2568832,606.1,604.38,1.75456439]
[1745480130158,1.2568832,606.1,604.39,1.75456439]
[1745480130354,1.2568832,606.1,604.4,1.45080667]
[1745480130556,1.2568832,606.1,604.41,2.82156524]
[1745480130759,1.2568832,606.1,604.42,2.82156524]
[1745480130959,1.2568832,606.1,604.43,1.75456439]
[1745480131155,0.28758073,606.09,604.44,1.45080667]
[1745480131356,0.28758073,606.09,604.45,1.45080667]
[1745480131554,0.28758073,606.09,604.46,1.45080667]
[1745480131755,0.28758073,606.09,604.47,1.45080667]
[1745480131955,0.28758073,606.09,604.48,1.45080667]
[1745480132258,0.28758073,606.09,604.49,1.45080667]
[1745480132458,0.28758073,606.09,604.5,1.45080667]
[1745480132655,0.28758073,606.09,604.51,0.60538561]
[1745480132858,0.28758073,606.09,604.52,1.45114225]
[1745480133061,1.2568832,606.23,604.53,2.5181431]
[1745480133360,0.28755459,606.08,604.54,2.5181431]
[1745480133555,1.2568832,606.23,604.55,1.45114225]
[1745480133757,1.2568832,606.23,604.54,1.06700085]
[1745480133758,1.2568832,606.23,604.56,1.45114225]
[1745480133960,1.2568832,606.23,604.57,1.45114225]
[1745480134160,1.2568832,606.23,604.58,2.5181431]
[1745480134462,0.28754865,606.22,604.59,1.45114225]
[1745480134662,0.28754865,606.22,604.6,1.45114225]
[1745480134960,0.28754865,606.22,604.61,1.45114225]
[1745480135156,0.28754865,606.22,604.62,1.45114225]
[1745480135361,0.28754865,606.22,604.63,1.45114225]
[1745480135557,0.28754865,606.22,604.64,1.45114225]
[1745480135860,0.28754865,606.22,604.65,1.91275749]
[1745480136061,1.2568832,606.3,604.66,0.84575664]
[1745480136560,1.2568832,606.3,604.67,1.06700085]
[1745480136762,1.2568832,606.3,604.68,1.06700085]
[1745480137061,1.2568832,606.28,604.68,1.06700085]
[1745480137456,1.2568832,606.28,604.69,1.06700085]
[1745480137763,1.2568832,606.28,604.7,1.06700085]
[1745480137961,1.2568832,606.28,604.71,1.06700085]
[1745480138558,1.2568832,606.28,604.28,1.06700085]
[1745480138763,1.2568832,606.28,604.29,1.75457998]
[1745480138963,1.2568832,606.28,604.3,1.75457998]
[1745480139263,1.2568832,606.28,604.31,1.45081169]
[1745480139461,1.2568832,606.28,604.32,1.45081169]
[1745480139658,1.2568832,606.28,604.33,1.45081169]
[1745480139860,1.2568832,606.25,604.34,1.45081169]
[1745480140061,1.2568832,606.25,604.35,1.45081169]
[1745480140264,1.2568832,606.25,604.31,1.06700085]
[1745480140265,1.2568832,606.25,604.36,2.51781254]
[1745480140462,1.2568832,606.25,604.37,1.45081169]
[1745480140658,1.2568832,606.25,604.38,1.45081169]
[1745480140856,1.2568832,606.25,604.39,1.45081169]
[1745480141061,1.2568832,606.25,604.4,1.45081169]
[1745480141259,1.2568832,606.25,604.41,1.45081169]
[1745480141463,1.2568832,606.25,604.42,1.45081169]
[1745480141660,1.2568832,606.25,604.43,1.45081169]
[1745480141864,1.2568832,606.25,604.44,1.45081169]
[1745480142165,1.2568832,606.25,604.45,2.51781254]
[1745480142360,1.2568832,606.11,604.46,1.45081169]
[1745480142564,1.2568832,606.11,604.47,1.45081169]
[1745480142861,1.2568832,606.11,604.48,2.51781254]
[1745480143064,1.2568832,606.11,604.49,1.45081169]
[1745480143266,0.28761163,606.1,604.5,1.45081169]
[1745480143466,0.28761163,606.1,604.51,1.45081169]
[1745480143668,0.28761163,606.1,604.52,2.51675551]
[1745480143862,0.28761163,606.1,604.53,1.45081169]
[1745480144066,0.28761163,606.1,604.54,1.45081169]
[1745480144267,0.28761163,606.1,604.55,1.45081169]
[1745480144462,0.28761163,606.1,604.56,0.84542698]
[1745480144665,0.28761163,606.1,604.57,0.84542698]
[1745480144865,0.28761163,606.1,604.58,0.84542698]
[1745480145061,1.2568832,606.0,604.59,1.9113708]
[1745480145264,1.2568832,606.0,604.59,1.06594382]
[1745480145567,1.2568832,606.0,604.6,1.06594382]
[1745480145962,1.2568832,606.0,604.61,1.06594382]
[1745480146467,1.2568832,606.0,604.62,1.06594382]
[1745480146468,0.28760925,605.99,604.62,1.06594382]
[1745480147067,0.28760925,605.99,604.63,1.06594382]
[1745480147670,0.28760925,605.99,604.64,1.06594382]
[1745480147968,1.2568832,606.03,604.64,1.06594382]
[1745480148168,1.2568832,606.03,604.65,1.06594382]
[1745480148568,1.2568832,606.03,604.66,1.06594382]
[1745480148969,1.2568832,606.03,604.67,1.06594382]
[1745480149166,0.28759855,606.02,604.67,1.06594382]
[1745480149871,0.28759855,606.02,604.41,1.52]
[1745480152472,0.28759618,606.05,604.53,2.51393305]
[1745480152666,0.28759618,606.05,604.54,1.44857473]
[1745480152866,0.28759618,606.05,604.55,1.44847354]
[1745480153066,0.28759618,606.05,604.56,2.51383186]
[1745480153270,0.28759618,606.05,604.57,1.44847354]
[1745480153465,0.28759618,606.05,604.58,2.51383186]
[1745480153667,0.28759618,606.05,604.59,1.44847354]
[1745480153867,1.2568832,606.06,604.6,1.44847354]
[1745480154074,1.2568832,606.06,604.61,1.44847354]
[1745480154371,0.28757479,606.04,604.62,2.51383186]
[1745480154573,0.28757479,606.04,604.63,1.44847354]
[1745480154773,0.28757479,606.04,604.64,1.44847354]
[1745480154973,0.28757479,606.04,604.65,0.84402654]
[1745480155167,0.28757479,606.04,604.66,1.90938486]
[1745480155370,0.28757479,606.04,604.67,0.84402654]
[1745480155572,0.28757479,606.04,604.68,1.06535832]
[1745480155767,0.28757479,606.04,604.69,1.06535832]
[1745480156172,0.28757479,606.04,604.7,1.06535832]
[1745480156772,0.28757479,606.04,604.71,0.84408128]
[1745480157072,0.28757479,606.04,604.71,1.06535832]
[1745480157273,0.28757479,606.04,604.72,0.84407657]
[1745480157474,0.28757479,606.04,604.73,1.90947791]
[1745480157671,0.28757479,606.04,604.73,1.06535832]
[1745480158073,0.28757479,606.04,604.74,1.06535832]
[1745480158373,0.28757479,606.04,604.75,0.8441177]
[1745480158574,0.28757479,606.04,604.75,1.06535832]
[1745480158969,0.28757479,606.04,604.76,1.06535832]
[1745480159876,0.28757479,606.04,604.77,1.06535832]
[1745480160076,1.2568832,606.23,604.78,0.84417318]
[1745480160276,1.2568832,606.23,604.79,1.9095315]
[1745480160476,1.2568832,606.23,604.8,0.84411941]
[1745480160778,1.2568832,606.23,604.81,0.84411941]
[1745480161076,1.2568832,606.23,604.79,1.06535832]
[1745480161272,0.28749995,606.22,604.82,1.06535832]
[1745480161877,0.28749995,606.22,604.83,1.06535832]
[1745480162078,0.28749995,606.22,604.84,1.06535832]
[1745480162271,0.28749995,606.22,604.85,0.84417553]
[1745480162481,1.54438315,606.22,604.86,1.90953385]
[1745480162678,1.54438315,606.22,604.87,0.84416474]
[1745480162882,1.2568832,606.22,604.88,0.84416474]
[1745480163082,1.2568832,606.22,604.86,1.06535832]
[1745480163083,1.2568832,606.22,604.89,0.84416474]
[1745480163378,1.2568832,606.22,604.9,1.90952306]
[1745480163582,1.2568832,606.22,604.91,0.84416474]
[1745480163880,1.2568832,606.22,604.92,1.06535832]
[1745480164079,0.28745839,606.21,604.92,1.06535832]
[1745480164785,0.28745839,606.21,604.93,1.06535832]
[1745480165586,0.28745839,606.21,604.94,1.06535832]
[1745480166086,1.2568832,606.44,604.94,1.06535832]
[1745480166486,1.2568832,606.44,604.85,1.06535832]
[1745480166686,1.2568832,606.44,604.86,1.44881205]
[1745480166882,1.2568832,606.44,604.87,1.90955871]
[1745480167182,0.28743821,606.43,604.88,1.90955871]
[1745480167385,0.28743821,606.43,604.89,0.84420039]
[1745480167589,0.28743821,606.43,604.9,1.90955871]
[1745480167784,0.28743821,606.43,604.9,1.06535832]
[1745480168287,0.28743821,606.43,604.84,1.308]
[1745480168288,0.28743821,606.43,604.91,1.06535832]
[1745480168585,0.28743821,606.43,604.92,1.06535832]
[1745480169088,1.2568832,606.51,604.92,1.06535832]
[1745480169284,1.2568832,606.51,604.85,1.06535832]
[1745480169488,1.2568832,606.51,604.86,1.90989243]
[1745480169685,1.2568832,606.51,604.87,0.84453411]
[1745480169889,1.2568832,606.51,604.86,1.06535832]
[1745480170190,0.28744533,606.5,604.87,0.84452068]
[1745480170388,0.28744533,606.5,604.88,0.84452068]
[1745480170584,0.28744533,606.5,604.88,1.909879]
[1745480170784,0.28744533,606.5,604.88,1.06535832]
[1745480171090,0.28744533,606.5,604.89,1.403]
[1745480171290,1.54432853,606.5,604.89,1.403]
[1745480171792,1.54432853,606.5,604.9,1.06535832]
[1745480171987,1.2568832,606.5,604.9,1.06535832]
[1745480173192,0.28744296,606.49,604.9,1.06535832]
[1745480175093,1.2568832,606.51,604.9,1.06535832]
[1745480175993,1.2568832,606.51,604.89,1.403]
[1745480176293,0.28746314,606.5,604.89,1.403]
[1745480176894,1.2568832,606.17,604.89,1.403]
[1745480179397,1.2568832,606.34,604.89,1.403]
[1745480179694,1.2568832,606.34,604.9,1.652]
[1745480179995,1.2568832,606.34,604.91,1.06655666]
[1745480180797,1.2568832,606.34,604.92,1.06655666]
[1745480181199,0.28745958,606.33,604.93,1.06655666]
[1745480181694,0.28745958,606.33,604.94,1.06646864]
[1745480182092,0.28745958,606.33,604.95,1.06646864]
[1745480182893,0.28745958,606.33,604.91,1.06646864]
[1745480183397,0.28745958,606.33,604.92,1.06646864]
[1745480183797,0.28745958,606.33,604.93,1.06646864]
[1745480184096,1.2568832,606.65,604.93,1.06646864]
[1745480184297,0.28742278,606.32,604.93,1.06646864]
[1745480184498,1.2568832,606.65,604.94,1.06646864]
[1745480184697,1.2568832,606.64,604.94,1.06646864]
[1745480184997,1.2568832,606.64,604.95,1.06646864]
[1745480185399,1.2568832,606.64,604.96,1.06646864]
[1745480185896,1.2568832,606.64,604.97,1.06646864]
[1745480186499,1.2568832,606.64,604.9,1.652]
[1745480187398,1.2568832,606.64,604.91,1.06621997]
[1745480187695,1.2568832,606.73,604.92,1.06621997]
[1745480188199,1.2568832,606.73,604.9,1.652]
[1745480189299,1.2568832,606.73,604.9,2.927]
[1745480190501,1.2568832,606.51,604.9,2.927]
[1745480191197,0.28746789,606.5,604.9,2.927]
[1745480192798,1.2568832,606.26,604.9,2.927]
[1745480195800,1.2568832,606.07,604.9,2.927]
[1745480197204,0.28752251,606.06,604.9,2.927]
[1745480198502,0.28752251,606.06,604.9,4.229]
[1745480198804,1.2568832,606.0,604.9,4.229]
[1745480202608,0.28754627,606.05,604.9,4.229]
[1745480205009,1.2568832,606.02,604.9,4.229]
[1745480206210,0.28756647,606.01,604.9,4.229]
[1745480207909,1.2568832,606.02,604.9,4.229]
[1745480208114,1.2568832,605.93,604.9,4.229]
[1745480209108,0.28760806,605.92,604.9,4.229]
[1745480214019,1.2568832,606.0,604.9,4.229]
[1745480214319,0.28760925,605.91,604.9,4.229]
[1745480214518,1.2568832,605.95,604.9,4.229]
[1745480215515,0.28761519,605.94,604.9,4.229]
[1745480216519,0.28761519,605.94,604.9,5.729]
[1745480217015,1.2568832,605.95,604.9,5.729]
[1745480217220,1.2568832,606.07,604.9,5.729]
[1745480217419,0.28761519,605.93,604.9,5.729]
[1745480217619,1.2568832,606.07,604.9,5.729]
[1745480218316,0.28760568,606.06,604.9,5.729]
[1745480220119,1.2568832,606.21,604.9,5.729]
[1745480221222,0.28759855,606.2,604.9,5.729]
[1745480222324,1.2568832,605.82,604.9,5.729]
[1745480224223,0.28764966,605.81,604.9,5.729]
[1745480224826,0.28764966,605.81,603.63,1.04401344]
[1745480225024,0.28764966,605.81,603.64,1.75053391]
[1745480225318,0.28764966,605.81,603.65,2.81443107]
[1745480225523,0.28764966,605.81,603.66,1.75053678]
[1745480225725,0.28764966,605.81,603.67,2.81443107]
[1745480226020,1.2568832,605.89,603.68,1.75046422]
[1745480226219,1.2568832,605.89,603.69,1.75046422]
[1745480226425,0.28781977,605.88,603.7,1.75046422]